bitfinex/quotes_BTCUSD_20250127
["timestamp","ask_amount","ask_price","bid_price","bid_amount"]
[1737993904853,0.54159052,101120.0,101110.0,0.00029504]
[1737993905265,0.44524323,101120.0,101110.0,0.00029504]
[1737993906253,0.54259052,101120.0,101110.0,0.00029504]
[1737993906570,0.55259052,101120.0,101110.0,0.00029504]
[1737993906902,0.54159052,101120.0,101110.0,0.00029504]
[1737993907584,0.5513436,101120.0,101110.0,0.00029504]
[1737993907934,0.5613436,101120.0,101110.0,0.00329504]
[1737993908325,0.5613436,101120.0,101110.0,0.00129504]
[1737993908499,0.5613436,101120.0,101110.0,0.00029504]
[1737993908731,0.5623436,101120.0,101110.0,0.00029504]
[1737993909339,0.7062484,101120.0,101110.0,4e-08]
[1737993909601,0.67495893,101120.0,101110.0,4e-08]
[1737993909809,0.67254705,101120.0,101110.0,4e-08]
[1737993910687,0.32396833,101110.0,101100.0,6.1e-07]
[1737993910898,0.42131562,101110.0,101100.0,6.1e-07]
[1737993911603,0.148353,101110.0,101100.0,6.1e-07]
[1737993911838,0.14958952,101110.0,101100.0,6.1e-07]
[1737993912282,0.148353,101110.0,101100.0,6.1e-07]
[1737993913247,0.150353,101110.0,101100.0,6.1e-07]
[1737993913699,0.15158938,101110.0,101100.0,6.1e-07]
[1737993913924,0.27420471,101110.0,101100.0,6.1e-07]
[1737993914135,0.39331562,101110.0,101100.0,6.1e-07]
[1737993914546,0.29696833,101110.0,101100.0,6.1e-07]
[1737993915116,0.171353,101110.0,101100.0,6.1e-07]
[1737993915364,0.2952049,101110.0,101100.0,6.1e-07]
[1737993915568,0.29496833,101110.0,101100.0,6.1e-07]
[1737993915979,0.172353,101110.0,101100.0,6.1e-07]
[1737993916202,0.14908959,101100.0,101090.0,0.00029715]
[1737993917455,0.15032611,101100.0,101090.0,0.00029715]
[1737993917893,0.14908959,101100.0,101090.0,0.00029715]
[1737993918103,0.15032616,101100.0,101090.0,0.00029715]
[1737993918502,0.29594149,101100.0,101090.0,0.00329715]
[1737993918653,0.54205221,101100.0,101090.0,0.00329715]
[1737993918855,0.54205221,101100.0,101090.0,0.00429715]
[1737993919278,0.44470492,101100.0,101090.0,0.00129715]
[1737993919483,0.27170492,101100.0,101090.0,0.00029715]
[1737993919660,0.14908959,101100.0,101090.0,0.00329715]
[1737993919838,0.1503262,101100.0,101090.0,0.00429715]
[1737993920507,0.1503262,101100.0,101090.0,0.00329715]
[1737993921067,0.23237936,101100.0,101090.0,0.00329715]
[1737993921239,0.25414275,101100.0,101090.0,0.00329715]
[1737993921380,0.25414275,101100.0,101090.0,0.00029715]
[1737993921586,0.23114275,101100.0,101090.0,0.00029715]
[1737993921783,0.14908959,101100.0,101090.0,0.00029715]
[1737993922026,0.35372667,101100.0,101090.0,0.00029715]
[1737993922409,0.25414275,101100.0,101090.0,0.00029715]
[1737993922818,0.25414275,101100.0,101090.0,0.00329715]
[1737993923032,0.14908959,101100.0,101090.0,0.00029715]
[1737993923234,0.15032621,101100.0,101090.0,0.00029715]
[1737993923346,0.15132621,101100.0,101090.0,0.00029715]
[1737993923801,0.25637937,101100.0,101090.0,0.00029715]
[1737993924005,0.25514275,101100.0,101090.0,0.00029715]
[1737993924578,0.35249004,101100.0,101090.0,0.00029715]
[1737993925023,0.15008959,101100.0,101090.0,0.00029715]
[1737993925370,0.1503262,101100.0,101090.0,0.00029715]
[1737993925773,0.1513262,101100.0,101090.0,0.00029715]
[1737993926150,0.1513262,101100.0,101090.0,0.00129715]
[1737993926382,0.15008959,101100.0,101090.0,0.00129715]
[1737993926790,0.15008959,101100.0,101090.0,0.00029715]
[1737993926971,0.15008959,101100.0,101090.0,0.22377915]
[1737993927219,0.00172259,101100.0,101090.0,0.37082644]
[1737993927425,0.15108959,101100.0,101090.0,0.37082644]
[1737993927637,0.15108959,101100.0,101090.0,0.22244444]
[1737993927638,0.1523259,101100.0,101090.0,0.22244444]
[1737993927863,0.1523259,101100.0,101090.0,0.12509715]
[1737993928035,0.15108959,101100.0,101090.0,0.27347915]
[1737993928475,0.00272259,101100.0,101090.0,0.37082644]
[1737993928880,0.15108959,101100.0,101090.0,0.37082644]
[1737993929503,0.15108959,101100.0,101090.0,0.27347915]
[1737993929705,0.15108959,101100.0,101090.0,0.37082644]
[1737993930115,0.00272259,101100.0,101090.0,0.37082644]
[1737993930307,0.15108959,101100.0,101090.0,0.37082644]
[1737993930942,0.15108959,101100.0,101090.0,0.13515874]
[1737993931149,0.150367,101100.0,101090.0,0.28354074]
[1737993931356,0.150367,101100.0,101090.0,0.38088803]
[1737993931860,0.002,101100.0,101090.0,0.38088803]
[1737993932060,0.150367,101100.0,101090.0,0.3865247]
[1737993932217,0.150367,101100.0,101090.0,0.38580211]
[1737993932422,0.148367,101100.0,101090.0,0.58364011]
[1737993932620,0.148367,101100.0,101090.0,0.38580211]
[1737993932827,0.148367,101100.0,101090.0,0.38980211]
[1737993933200,0.14960343,101100.0,101090.0,0.23135852]
[1737993933833,0.14960343,101100.0,101090.0,0.05933667]
[1737993934036,0.17260343,101100.0,101090.0,0.00963667]
[1737993934238,0.171367,101100.0,101090.0,0.00963667]
[1737993934676,0.17260365,101100.0,101090.0,0.00963667]
[1737993934872,0.148367,101100.0,101090.0,0.00963667]
[1737993935113,0.14960357,101100.0,101090.0,0.00963667]
[1737993935797,0.17260357,101100.0,101090.0,0.00963667]
[1737993936012,0.25465673,101100.0,101090.0,0.00863667]
[1737993936215,0.25342016,101100.0,101090.0,0.00863667]
[1737993936419,0.50076745,101100.0,101090.0,0.00863667]
[1737993936631,0.50076745,101100.0,101090.0,0.00877827]
[1737993936832,0.50076745,101100.0,101090.0,0.00677827]
[1737993937192,0.50076745,101100.0,101090.0,0.00977827]
[1737993937417,0.50076745,101100.0,101090.0,0.00577827]
[1737993937619,0.50106481,101100.0,101090.0,0.00577827]
[1737993938024,0.50206481,101100.0,101090.0,0.00577827]
[1737993940078,0.42001165,101100.0,101090.0,0.00577827]
[1737993940718,0.29966436,101100.0,101090.0,0.00577827]
[1737993940898,0.17266436,101100.0,101090.0,0.00577827]
[1737993941099,0.15090098,101100.0,101090.0,0.00577827]
[1737993941309,0.14990098,101100.0,101090.0,0.00577827]
[1737993941700,0.15090098,101100.0,101090.0,0.00577827]
[1737993941906,0.23295414,101100.0,101090.0,0.00577827]
[1737993942082,0.50206481,101100.0,101090.0,0.00577827]
[1737993943685,0.50106481,101100.0,101090.0,0.00577827]
[1737993944084,0.50106481,101100.0,101090.0,0.00877827]
[1737993944294,0.50106481,101100.0,101090.0,0.00977827]
[1737993944520,0.50106481,101100.0,101090.0,0.00677827]
[1737993944930,0.50206481,101100.0,101090.0,0.00677827]
[1737993945265,0.50206481,101100.0,101090.0,0.00577827]
[1737993946424,0.14966436,101100.0,101090.0,0.00577827]
[1737993946634,0.15090094,101100.0,101090.0,0.00577827]
[1737993947081,0.17790094,101100.0,101090.0,0.00577827]
[1737993947287,0.17290094,101100.0,101090.0,0.00577827]
[1737993947490,0.2549541,101100.0,101090.0,0.00577827]
[1737993947691,0.25371752,101100.0,101090.0,0.00877827]
[1737993947900,0.58311797,101100.0,101090.0,0.00877827]
[1737993948082,0.50106481,101100.0,101090.0,0.00877827]
[1737993948293,0.50106481,101100.0,101090.0,0.00577827]
[1737993948503,0.50106481,101100.0,101090.0,0.00877827]
[1737993948848,0.50106481,101100.0,101090.0,0.0001416]
[1737993949055,0.50106481,101100.0,101090.0,0.0068232]
[1737993949739,0.47806481,101100.0,101090.0,0.0058232]
[1737993949943,0.50106481,101100.0,101090.0,0.0058232]
[1737993950740,0.50206481,101100.0,101090.0,0.0058232]
[1737993951141,0.58366481,101100.0,101090.0,0.0058232]
[1737993951347,0.66571797,101100.0,101090.0,0.0058232]
[1737993951554,0.58366481,101100.0,101090.0,0.0058232]
[1737993952098,0.58266481,101100.0,101090.0,0.0058232]
[1737993952541,0.58866481,101100.0,101090.0,0.0058232]
[1737993953156,0.50506481,101100.0,101090.0,0.0058232]
[1737993953944,0.58711797,101100.0,101090.0,0.0058232]
[1737993954147,0.50506481,101100.0,101090.0,0.0058232]
[1737993954552,0.50106481,101100.0,101090.0,0.0058232]
[1737993954961,0.52154935,101100.0,101090.0,0.0058232]
[1737993955142,0.52054935,101100.0,101090.0,0.0058232]
[1737993955344,0.60260251,101100.0,101090.0,0.0058232]
[1737993955749,0.60660251,101100.0,101090.0,0.0058232]
[1737993956037,0.61660251,101100.0,101090.0,0.0001416]
[1737993956243,0.61860251,101100.0,101090.0,0.0001416]
[1737993956829,0.61660251,101100.0,101090.0,0.0001416]
[1737993957250,0.62360251,101100.0,101090.0,0.0011416]
[1737993958224,0.61960251,101100.0,101090.0,0.0011416]
[1737993958639,0.7954498,101100.0,101090.0,6e-07]
[1737993958838,0.7954498,101100.0,101060.0,0.04]
[1737993958839,0.148411,101070.0,101060.0,0.04]
[1737993959058,0.38170115,101070.0,101060.0,0.04]
[1737993959277,0.38046416,101070.0,101060.0,0.04]
[1737993959923,0.298411,101070.0,101060.0,0.04]
[1737993960139,0.298411,101070.0,101060.0,0.0401481]
[1737993960345,0.38046416,101070.0,101060.0,0.0401481]
[1737993960549,0.346271,101080.0,101060.0,0.0401481]
[1737993960760,0.148401,101080.0,101060.0,0.21779539]
[1737993961000,0.34750085,101080.0,101060.0,0.21779539]
[1737993961214,0.34750085,101080.0,101060.0,0.1204481]
[1737993961215,0.148411,101070.0,101060.0,0.1204481]
[1737993961844,0.3967017,101090.0,101060.0,0.1204481]
[1737993962056,0.5450917,101090.0,101070.0,0.0498]
[1737993962278,0.148397,101080.0,101070.0,0.0498]
[1737993962658,0.14963378,101080.0,101070.0,0.0498]
[1737993962859,0.00123678,101080.0,101070.0,0.0498]
[1737993963064,0.14963377,101080.0,101070.0,0.0498]
[1737993963431,0.7429457,101090.0,101070.0,0.0498]
[1737993963679,0.5450877,101090.0,101070.0,0.0498]
[1737993963879,0.14963375,101080.0,101070.0,0.0498]
[1737993964460,0.152397,101080.0,101070.0,0.0498]
[1737993965966,0.15363379,101080.0,101070.0,0.0498]
[1737993966377,0.14963379,101080.0,101070.0,0.0498]
[1737993966578,0.00223679,101080.0,101070.0,0.0498]
[1737993966787,0.001,101080.0,101070.0,0.0498]
[1737993966983,0.15063376,101080.0,101070.0,0.0498]
[1737993967254,0.15063376,101080.0,101070.0,0.0550277]
[1737993967445,0.001,101080.0,101070.0,0.0550277]
[1737993968575,0.001,101080.0,101070.0,0.45874025]
[1737993968784,0.001,101080.0,101070.0,0.1304277]
[1737993970167,0.00223679,101080.0,101070.0,0.1304277]
[1737993970511,0.001,101080.0,101070.0,0.1304277]
[1737993970720,0.001,101080.0,101070.0,0.37618599]
[1737993971322,0.001,101080.0,101070.0,0.22777499]
[1737993971951,0.001,101080.0,101070.0,0.1304277]
[1737993972112,0.149397,101080.0,101070.0,0.0052277]
[1737993972987,0.001,101080.0,101070.0,0.0052277]
[1737993973185,0.0022368,101080.0,101070.0,0.0052277]
[1737993974022,0.0022368,101080.0,101070.0,0.1536387]
[1737993974221,0.001,101080.0,101070.0,0.33028709]
[1737993974508,0.001,101080.0,101070.0,0.32978599]
[1737993974918,0.001,101080.0,101070.0,0.2324387]
[1737993975326,0.001,101080.0,101070.0,0.32978599]
[1737993975934,0.001,101080.0,101070.0,0.25098599]
[1737993976555,0.149397,101080.0,101070.0,0.0052277]
[1737993976763,0.15063395,101080.0,101070.0,0.0052277]
[1737993976992,0.27098124,101080.0,101070.0,0.0052277]
[1737993977178,0.26974429,101080.0,101070.0,0.0052277]
[1737993977380,0.001,101080.0,101070.0,0.0052277]
[1737993977592,0.149397,101080.0,101070.0,0.0052277]
[1737993977996,0.27098123,101080.0,101070.0,0.0052277]
[1737993978184,0.26974429,101080.0,101070.0,0.0052277]
[1737993979159,0.26727668,101080.0,101070.0,0.0052277]
[1737993981908,0.12034729,101080.0,101070.0,0.0052277]
[1737993982075,0.26874429,101080.0,101070.0,0.0052277]
[1737993982417,0.54537706,101090.0,101070.0,0.0052277]
[1737993982636,0.148397,101080.0,101070.0,0.0052277]
[1737993982965,0.44486535,101090.0,101070.0,0.0052277]
[1737993983170,0.09862735,101090.0,101070.0,0.0052277]
[1737993983372,0.00123686,101080.0,101070.0,0.0052277]
[1737993984292,0.12034729,101080.0,101070.0,0.0052277]
[1737993985214,0.34750806,101090.0,101070.0,0.0052277]
[1737993985395,0.00123687,101080.0,101070.0,0.0052277]
[1737993985596,0.64270935,101090.0,101070.0,0.0052277]
[1737993985806,0.00123688,101080.0,101070.0,0.0052277]
[1737993986010,0.24701135,101090.0,101070.0,0.0052277]
[1737993986218,0.09962735,101090.0,101070.0,0.0052277]
[1737993986434,0.00123686,101080.0,101070.0,0.0052277]
[1737993986846,0.26998115,101080.0,101070.0,0.0052277]
[1737993987055,0.12034729,101080.0,101070.0,0.0052277]
[1737993987268,0.12158426,101080.0,101070.0,0.0052277]
[1737993987473,0.12034729,101080.0,101070.0,0.0052277]
[1737993987890,0.26998125,101080.0,101070.0,0.0052277]
[1737993988094,0.12034729,101080.0,101070.0,0.0052277]
[1737993988503,0.02423696,101080.0,101070.0,0.0052277]
[1737993988708,0.023,101080.0,101070.0,0.0052277]
[1737993988912,0.14967506,101090.0,101070.0,0.0052277]
[1737993989113,0.00123691,101080.0,101070.0,0.0052277]
[1737993989321,0.00223691,101080.0,101070.0,0.0053693]
[1737993989966,0.0995842,101080.0,101070.0,0.0053693]
[1737993990550,0.2479812,101080.0,101070.0,0.0053693]
[1737993990748,0.24674429,101080.0,101070.0,0.0053693]
[1737993992355,0.5892143,101080.0,101070.0,0.0053693]
[1737993992559,0.65050377,101080.0,101070.0,0.0053693]
[1737993992763,0.77640377,101080.0,101070.0,0.0053693]
[1737993993116,0.65898692,101080.0,101070.0,0.0001416]
[1737993993326,1.03865061,101080.0,101070.0,0.0001416]
[1737993993783,1.03765061,101080.0,101070.0,0.0001416]
[1737993993995,1.04665061,101080.0,101070.0,0.0011416]
[1737993994346,1.05565003,101080.0,101070.0,0.0011416]
[1737993994550,1.15299732,101080.0,101070.0,0.0011416]
[1737993994757,1.16199732,101080.0,101070.0,0.0021416]
[1737993994954,1.05665003,101080.0,101070.0,0.0011416]
[1737993995392,1.06565003,101080.0,101070.0,0.0021416]
[1737993995920,0.96059687,101080.0,101070.0,0.0021416]
[1737993996125,1.05381569,101080.0,101070.0,0.0011416]
[1737993996540,0.98076253,101080.0,101070.0,0.0011416]
[1737993996742,0.99476253,101080.0,101070.0,0.0011416]
[1737993997308,1.00376253,101080.0,101070.0,0.0011416]
[1737993997642,0.99476253,101080.0,101070.0,0.00496102]
[1737993997873,0.99476253,101080.0,101070.0,0.0001416]
[1737993998072,1.00376253,101080.0,101070.0,0.0059997]
[1737993998273,1.02376253,101080.0,101070.0,0.0059997]
[1737993998528,0.92170937,101080.0,101070.0,0.0059997]
[1737993998704,0.92170937,101080.0,101070.0,0.0011416]
[1737993998870,0.99476253,101080.0,101070.0,0.0001416]
[1737993999235,1.09210982,101080.0,101070.0,0.0001416]
[1737993999477,1.10110982,101080.0,101070.0,0.0011416]
[1737994000294,1.00376253,101080.0,101070.0,0.0011416]
[1737994000742,0.48646416,101070.0,101060.0,0.0402897]
[1737994000947,0.58381145,101070.0,101060.0,0.0402897]
[1737994002188,0.59281145,101070.0,101060.0,0.0412897]
[1737994002827,0.51075829,101070.0,101060.0,0.0412897]
[1737994003027,0.59910558,101070.0,101060.0,0.0402897]
[1737994003249,0.69015874,101070.0,101060.0,0.0402897]
[1737994004710,0.69915874,101070.0,101060.0,0.0402897]
[1737994005757,0.73090167,101070.0,101060.0,0.0402897]
[1737994007492,0.69915874,101070.0,101060.0,0.0402897]
[1737994007920,2.37674192,101070.0,101060.0,0.0402897]
[1737994008125,2.29468876,101070.0,101060.0,0.03451821]
[1737994008342,2.27168876,101070.0,101060.0,0.03451821]
[1737994008721,0.23052316,101030.0,101020.0,0.00035778]
[1737994008984,0.38571729,101030.0,101020.0,0.00035778]
[1737994009192,0.55203729,101030.0,101020.0,0.00035778]
[1737994010028,0.54213509,101030.0,101020.0,0.00035778]
[1737994010260,0.60516511,101030.0,101020.0,0.00035778]
[1737994010467,0.68721827,101030.0,101020.0,0.00035778]
[1737994010678,0.18022793,101020.0,101010.0,0.015282]
[1737994010901,0.4601002,101020.0,101010.0,0.015282]
[1737994011116,0.45886231,101020.0,101010.0,0.015282]
[1737994011325,0.54091547,101020.0,101010.0,0.015282]
[1737994011762,0.62191547,101020.0,101010.0,0.015282]
[1737994011982,0.82826276,101020.0,101010.0,1e-06]
[1737994012195,0.148573,100960.0,100940.0,0.09786022]
[1737994012399,0.09858576,100950.0,100940.0,0.09786022]
[1737994012598,0.09858576,100950.0,100940.0,0.01580706]
[1737994013166,0.09858576,100950.0,100940.0,0.17991338]
[1737994013365,0.09734729,100950.0,100940.0,0.17991338]
[1737994013549,0.0012385,100950.0,100940.0,0.17991338]
[1737994013746,0.14979742,100970.0,100940.0,0.17991338]
[1737994013948,0.34797439,100970.0,100960.0,0.08205316]
[1737994014168,0.09744526,100970.0,100960.0,0.08205316]
[1737994014367,0.09868352,100970.0,100960.0,0.08205316]
[1737994015169,0.09744526,100970.0,100960.0,0.08205316]
[1737994015815,0.24724152,100970.0,100960.0,0.08205316]
[1737994016027,0.24600326,100970.0,100960.0,0.08205316]
[1737994016429,0.148575,100960.0,100950.0,0.08205316]
[1737994016680,0.09734729,100960.0,100950.0,0.16410632]
[1737994016887,0.09734729,100960.0,100950.0,0.18710632]
[1737994017098,0.00909797,100970.0,100960.0,0.023]
[1737994017308,0.11468352,100970.0,100960.0,0.10505316]
[1737994017504,0.10568352,100970.0,100960.0,0.10505316]
[1737994017734,0.11625187,100970.0,100960.0,0.08205316]
[1737994017935,0.09868352,100970.0,100950.0,0.08205316]
[1737994018143,0.10058565,100960.0,100950.0,0.10505316]
[1737994018351,0.10058565,100960.0,100950.0,0.08205316]
[1737994018553,0.09934729,100960.0,100950.0,0.08205316]
[1737994018691,0.09734729,100960.0,100950.0,0.12341732]
[1737994019136,0.24715868,100960.0,100940.0,0.26296598]
[1737994019335,0.24592029,100960.0,100940.0,0.26296598]
[1737994019516,0.00123849,100950.0,100940.0,0.28596598]
[1737994019712,0.09858578,100950.0,100940.0,0.28596598]
[1737994019924,0.00123849,100950.0,100940.0,0.28596598]
[1737994020126,0.00833635,100970.0,100940.0,0.26306602]
[1737994020402,0.10444526,100970.0,100960.0,0.14641732]
[1737994020609,0.11344526,100970.0,100960.0,0.023]
[1737994020819,0.24600426,100970.0,100940.0,0.26296598]
[1737994021049,0.24592229,100960.0,100940.0,0.26296598]
[1737994021268,0.003,100950.0,100940.0,0.01594866]
[1737994021469,0.09734729,100950.0,100940.0,0.13936598]
[1737994021709,0.09734729,100950.0,100940.0,0.16236598]
[1737994022478,0.00509797,100970.0,100950.0,0.023]
[1737994022683,0.00633637,100970.0,100960.0,0.12341732]
[1737994022922,0.25100526,100970.0,100950.0,0.12341732]
[1737994023153,0.09734729,100960.0,100950.0,0.023]
[1737994023392,0.09734729,100960.0,100950.0,0.072]
[1737994023593,0.00509797,100970.0,100960.0,0.023]
[1737994024077,0.00509797,100970.0,100960.0,0.02310004]
[1737994024320,9.797e-05,100970.0,100960.0,0.1221159]
[1737994024528,9.797e-05,100970.0,100960.0,0.66762358]
[1737994024758,9.797e-05,100970.0,100960.0,0.88517087]
[1737994025178,0.00909797,100970.0,100960.0,0.88517087]
[1737994025613,0.09734729,101030.0,101010.0,0.023]
[1737994025826,0.09734729,101030.0,101020.0,0.14641732]
[1737994026059,0.0587,101060.0,101020.0,0.22431732]
[1737994026060,0.346347,101060.0,101020.0,0.22431732]
[1737994026269,0.09858469,101050.0,101030.0,0.023]
[1737994026934,0.00123719,101050.0,101030.0,0.32171572]
[1737994027133,0.00123719,101060.0,101040.0,0.27484274]
[1737994027384,0.09858448,101060.0,101050.0,0.14641732]
[1737994027586,0.09858448,101060.0,101050.0,0.12341732]
[1737994027800,0.00123719,101060.0,101050.0,0.15135652]
[1737994028037,0.010338,101070.0,101060.0,0.023]
[1737994028253,0.00029736,101070.0,101060.0,0.14651736]
[1737994028456,0.09764465,101070.0,101060.0,0.10393806]
[1737994028663,0.09888168,101070.0,101060.0,0.00491996]
[1737994028870,0.24729268,101070.0,101060.0,0.00491996]
[1737994029084,0.09764465,101070.0,101060.0,0.00491996]
[1737994029338,0.09888174,101070.0,101060.0,0.00491996]
[1737994029550,0.10488174,101070.0,101060.0,0.12933728]
[1737994029882,0.09888169,101070.0,101060.0,0.12833728]
[1737994030100,0.10464465,101070.0,101060.0,0.15133728]
[1737994030297,0.00729736,101070.0,101060.0,0.15143732]
[1737994030510,0.00729736,101070.0,101060.0,0.25045532]
[1737994030744,0.00729736,101070.0,101060.0,0.25035528]
[1737994030955,0.10464465,101070.0,101060.0,0.12833728]
[1737994031087,0.00729736,101070.0,101060.0,0.12833728]
[1737994031291,0.00729736,101070.0,101060.0,0.15133728]
[1737994031494,0.00029736,101070.0,101060.0,0.15133728]
[1737994031693,0.00029736,101070.0,101060.0,0.15233728]
[1737994031694,0.00929736,101070.0,101060.0,0.15233728]
[1737994031907,0.01129736,101070.0,101060.0,0.15233728]
[1737994032222,0.00229736,101070.0,101060.0,0.15133728]
[1737994032629,0.00729736,101070.0,101060.0,0.15133728]
[1737994032834,0.00729736,101070.0,101060.0,0.25045102]
[1737994033048,0.00729736,101070.0,101060.0,0.32835102]
[1737994033515,0.00729736,101070.0,101060.0,0.47677702]
[1737994033755,0.00729736,101070.0,101060.0,0.62677702]
[1737994033934,0.00729736,101070.0,101060.0,0.67247702]
[1737994034345,0.00729736,101070.0,101060.0,0.52405102]
[1737994034549,0.00729736,101070.0,101060.0,0.52395098]
[1737994034726,0.00729736,101070.0,101060.0,0.25035098]
[1737994035336,0.10464465,101070.0,101060.0,0.25035098]
[1737994035774,0.10464465,101070.0,101060.0,0.00491996]
[1737994035971,0.10588173,101070.0,101060.0,0.00491996]
[1737994036146,0.10464465,101070.0,101060.0,0.12833728]
[1737994036368,0.00729736,101070.0,101060.0,0.15143732]
[1737994036617,0.00729736,101070.0,101060.0,0.40045522]
[1737994037029,0.00729736,101070.0,101060.0,0.30133728]
[1737994037240,0.10464465,101070.0,101060.0,0.15133728]
[1737994037363,0.10464465,101070.0,101060.0,0.15143732]
[1737994038198,0.10464465,101070.0,101060.0,0.15126313]
[1737994038637,0.10464465,101070.0,101060.0,0.15116309]
[1737994038864,0.00729736,101070.0,101060.0,0.25028023]
[1737994039472,0.00729736,101070.0,101060.0,0.40028023]
[1737994039642,0.00729736,101070.0,101060.0,0.54870623]
[1737994039876,0.00729736,101070.0,101060.0,0.63060623]
[1737994040424,0.00729736,101070.0,101060.0,0.48218023]
[1737994040653,0.00729736,101070.0,101060.0,0.48208019]
[1737994041055,0.00729736,101070.0,101060.0,0.48218023]
[1737994042633,0.00729736,101070.0,101060.0,0.4408278]
[1737994044294,0.00729736,101070.0,101060.0,0.67131869]
[1737994044520,0.00729736,101070.0,101060.0,0.76866598]
[1737994044735,0.0051241,101070.0,101060.0,0.81686598]
[1737994044959,0.00369717,101070.0,101060.0,0.81686598]
[1737994045569,0.00029736,101080.0,101070.0,0.17151104]
[1737994045785,0.00029736,101080.0,101070.0,0.43820476]
[1737994045985,0.00029736,101080.0,101070.0,0.43770385]
[1737994046602,0.00029736,101090.0,101080.0,0.32149704]
[1737994046748,0.00029736,101090.0,101080.0,0.50725109]
[1737994046940,0.00029736,101090.0,101080.0,0.671266]
[1737994047299,3.352e-05,101100.0,101090.0,0.02310004]
[1737994047497,3.352e-05,101100.0,101090.0,0.14613994]
[1737994047855,3.352e-05,101100.0,101090.0,0.1508426]
[1737994048061,0.09738081,101100.0,101090.0,0.00470266]
[1737994048507,0.24575281,101100.0,101070.0,0.001]
[1737994048699,0.14840552,101100.0,101090.0,0.00446584]
[1737994048948,0.09738081,101100.0,101080.0,0.00444764]
[1737994049151,0.09734729,101090.0,101080.0,0.1230399]
[1737994049289,0.09734729,101090.0,101070.0,0.12313994]
[1737994049659,0.09934729,101090.0,101080.0,0.1230399]
[1737994049856,0.002,101090.0,101080.0,0.26917984]
[1737994050074,3.352e-05,101100.0,101080.0,0.24513254]
[1737994050277,0.00203352,101100.0,101090.0,0.1230399]
[1737994050895,0.00203352,101100.0,101070.0,0.27313994]
[1737994050896,0.09738081,101100.0,101070.0,0.27313994]
[1737994051044,0.09858407,101090.0,101080.0,0.1230399]
[1737994051389,0.09858407,101090.0,101070.0,0.22214634]
[1737994052530,0.10058407,101090.0,101070.0,0.22214634]
[1737994052701,0.09858407,101090.0,101070.0,0.22214634]
[1737994053112,0.09858407,101090.0,101070.0,0.22314634]
[1737994053717,0.09888186,101090.0,101070.0,0.22314634]
[1737994053955,0.09888186,101090.0,101080.0,0.1230399]
[1737994054161,0.197902,101060.0,101020.0,0.08695163]
[1737994054367,0.24703168,101050.0,101020.0,0.08695163]
[1737994054541,0.24703168,101050.0,101020.0,0.08744622]
[1737994054542,0.29651868,101050.0,101020.0,0.08744622]
[1737994054777,0.34415705,101050.0,101020.0,0.08744622]
[1737994054995,0.14847,101030.0,101020.0,0.08744622]
[1737994055199,0.39705489,101030.0,101020.0,0.08744622]
[1737994055402,0.39581729,101030.0,101020.0,0.00049459]
[1737994056419,0.41528407,101030.0,101020.0,0.00049459]
[1737994057120,0.43128407,101030.0,101020.0,0.00789033]
[1737994057408,0.67774381,101030.0,101020.0,0.00149459]
[1737994057628,0.64774381,101030.0,101020.0,0.00149459]
[1737994057837,0.79994381,101030.0,101020.0,0.00149459]
[1737994058042,0.148544,100980.0,100970.0,0.0012624]
[1737994058254,0.09858553,100980.0,100970.0,0.0012624]
[1737994058480,0.09858553,100980.0,100970.0,0.00765814]
[1737994059251,0.09908103,100980.0,100970.0,0.00765814]
[1737994059424,0.09908098,100980.0,100970.0,0.00765814]
[1737994059620,0.00173369,100980.0,100970.0,0.03065814]
[1737994059845,0.0004955,100980.0,100970.0,0.03065814]
[1737994060267,0.10384279,100980.0,100970.0,0.00765814]
[1737994060469,0.10508094,100980.0,100970.0,0.00765814]
[1737994061063,0.09908094,100980.0,100970.0,0.00765814]
[1737994061914,0.58503563,100980.0,100970.0,0.00765814]
[1737994062126,0.09784279,100980.0,100970.0,0.00765814]
[1737994062358,0.09784279,100980.0,100970.0,0.0012624]
[1737994062562,0.10108109,100980.0,100970.0,0.00778859]
[1737994062744,0.01361557,100980.0,100970.0,0.03078859]
[1737994063059,0.0004955,100980.0,100970.0,0.45238649]
[1737994063215,0.0104955,100980.0,100970.0,0.45238649]
[1737994063396,0.0014955,100980.0,100970.0,0.52988649]
[1737994063793,0.0054955,100980.0,100970.0,0.52988649]
[1737994064193,0.0004955,100980.0,100970.0,0.52988649]
[1737994064391,0.0024955,100980.0,100970.0,0.38132849]
[1737994065541,0.0024955,100980.0,100970.0,0.25828859]
[1737994065742,0.0024955,100980.0,100970.0,0.62723378]
[1737994066189,0.002,100980.0,100970.0,0.70493378]
[1737994066501,0.00123755,101040.0,101010.0,0.3465]
[1737994066671,0.09734729,101040.0,101020.0,0.1460399]
[1737994066854,0.00123741,101030.0,101020.0,0.02948964]
[1737994067053,0.0985847,101030.0,101020.0,0.00648964]
[1737994067278,0.09734729,101030.0,101020.0,0.00648964]
[1737994067534,0.09734729,101030.0,101010.0,0.00014868]
[1737994067751,0.148472,101030.0,101020.0,0.00648964]
[1737994067921,0.39581929,101030.0,101020.0,0.00648964]
[1737994068144,0.24734729,101030.0,101010.0,0.00014868]
[1737994068339,0.346409,101040.0,101020.0,0.00648964]
[1737994068543,0.148467,101040.0,101020.0,0.00648964]
[1737994068758,0.346408,101040.0,101010.0,0.00014868]
[1737994068901,0.148467,101040.0,101010.0,0.00014868]
[1737994069100,0.298456,101040.0,101030.0,0.00648964]
[1737994069306,0.496398,101040.0,101010.0,0.00014868]
[1737994069506,0.298456,101040.0,101030.0,0.00648964]
[1737994069712,0.496397,101040.0,101010.0,0.00014868]
[1737994069956,0.496397,101040.0,101030.0,0.00648964]
[1737994070154,0.001,101030.0,101020.0,0.00645422]
[1737994070360,0.15070862,101030.0,101010.0,0.00014868]
[1737994070565,0.00123762,101030.0,101020.0,0.00645422]
[1737994070765,0.00123762,101030.0,101010.0,0.00014868]
[1737994071132,0.00123762,101030.0,101020.0,0.00645422]
[1737994071337,0.00123762,101030.0,101010.0,0.00014868]
[1737994071794,0.14970762,101030.0,101020.0,0.00645422]
[1737994071990,0.00123762,101030.0,101010.0,0.00014868]
[1737994072166,0.00523762,101030.0,101020.0,0.00645422]
[1737994072374,0.15370862,101030.0,101010.0,0.00014868]
[1737994072555,0.35166962,101030.0,101010.0,0.00014868]
[1737994072927,0.55321522,101030.0,101020.0,0.00645422]
[1737994073124,0.59777929,101030.0,101020.0,0.00645422]
[1737994073335,0.79575329,101030.0,101010.0,0.00014868]
[1737994073518,0.59777929,101030.0,101020.0,0.00645422]
[1737994073910,0.24734729,101030.0,101010.0,0.00014868]
[1737994074086,0.24834729,101030.0,101020.0,0.00645422]
[1737994074299,0.09834729,101030.0,101020.0,0.00645422]
[1737994074501,0.09734729,101030.0,101010.0,0.00014868]
[1737994074685,0.09734729,101020.0,101010.0,0.00014868]
[1737994075098,0.004,101030.0,101010.0,0.00014868]
[1737994075304,0.10134729,101030.0,101010.0,0.00014868]
[1737994075531,0.00123759,101020.0,101010.0,0.00014868]
[1737994075735,0.00123759,101020.0,101010.0,0.02314868]
[1737994076112,0.00123759,101020.0,101010.0,0.14618858]